fUSD/lending_fUSD_20250127
["ID","MTS","AMOUNT","RATE_DAILY","PERIOD"]
[350612123,1737993056640,-553.01,0.00011899,2]
[350612124,1737993056652,-553.01,0.00011899,2]
[350612125,1737993056668,-553.01,0.00011899,2]
[350612126,1737993056687,-553.01,0.00011899,2]
[350612127,1737993056701,-500.0,0.00011899,2]
[350612128,1737993056712,-500.0,0.00011899,2]
[350612129,1737993056728,-500.0,0.00011899,2]
[350612130,1737993056740,-500.0,0.00011899,2]
[350612131,1737993056752,-500.0,0.00011899,2]
[350612132,1737993056765,-245.96082113,0.00011899,2]
[350612133,1737993056777,-200.0,0.00011899,2]
[350612134,1737993056790,-521.11082924,0.00011899,2]
[350612135,1737993056801,-850.81133675,0.000119,2]
[350612136,1737993056813,-16569.08743272,0.000119,2]
[350612137,1737993056828,-12630.49322819,0.000119,2]
[350612138,1737993056853,-487.81071579,0.000119,2]
[350612139,1737993057288,-500.0,0.00011895,2]
[350612140,1737993057298,-566.44608445,0.000119,2]
[350612141,1737993057309,-297.56034106,0.000119,2]
[350612142,1737993057405,-500.0,0.00011858,2]
[350612143,1737993057415,-500.0,0.00011895,2]
[350612144,1737993057424,-500.0,0.00011895,2]
[350612145,1737993057434,-272.53417119,0.00011895,2]
[350612146,1737993057520,-271.66582881,0.00011895,2]
[350612147,1737993057529,-119046.71886499,0.000119,2]
[350612148,1737993057541,-2701.00000018,0.000119,2]
[350612154,1737993838910,50000.0,0.00023,120]
[350612161,1737994077734,849.93,8.823e-05,2]
[350612316,1737994232187,-233.25,0.00010137,2]
[350612318,1737994232196,-645.68836615,0.00010742,2]
[350612320,1737994232206,-409.74,0.00010745,2]
[350612322,1737994232219,-1000.0,0.00010753,2]
[350612324,1737994232229,-165.7,0.00010882,2]
[350612326,1737994232239,-958.08,0.00010898,2]
[350612328,1737994232249,-3571.28,0.00010917,2]
[350612330,1737994232259,-159.4,0.0001094,2]
[350612332,1737994232269,-390.2,0.00010959,2]
[350612333,1737994232279,-169.98,0.00011076,2]
[350612334,1737994232288,-849.93,0.00011087,2]
[350612335,1737994232298,-500.0,0.00011123,2]
[350612336,1737994232308,-300.0,0.00011313,2]
[350612337,1737994232317,-6548.01178064,0.00011314,2]
[350612338,1737994232501,-472.4999982,0.00011314,2]
[350612339,1737994232512,-309.295005,0.00011314,2]
[350612340,1737994232524,-384.54,0.00011314,2]
[350612341,1737994232555,-5050.0,0.00011314,2]
[350612410,1737994238006,-492.986388,0.00011314,2]
[350612411,1737994238060,-1280.66682816,0.00011314,2]
[350612412,1737994238069,-3178.05532809,0.00011478,2]
[350612413,1737994238078,-17539.79540857,0.000115,2]
[350612414,1737994238087,-430.93306688,0.00011525,2]
[350612415,1737994238096,-333.0,0.00011726,2]
[350612416,1737994238105,-3000.0,0.0001178,2]
[350612417,1737994238114,-261.25304398,0.00011794,2]
[350612418,1737994238135,-1251.75,0.00011794,2]
[350612419,1737994238168,-3619.69978064,0.00011794,2]
[350612420,1737994238177,-150.0,0.00011794,2]
[350612421,1737994238187,-2416.90021936,0.00011795,2]
[350612422,1737994238199,-149.29448064,0.00011795,2]
[350612425,1737994238421,-285.47226864,0.00011797,2]
[350612426,1737994238431,-99.87547898,0.00011798,2]
[350612429,1737994238451,-1010.0,0.00011798,2]
[350612431,1737994238462,-28797.60382102,0.00011798,2]
[350612433,1737994238471,-3146.5,0.00011799,2]
[350612435,1737994238481,-176.7597565,0.000118,2]
[350612437,1737994238490,-274.91467556,0.000118,2]
[350612439,1737994238499,-388.1793101,0.000118,2]
[350612441,1737994238509,-207.92434138,0.000118,2]
[350612443,1737994238518,-5132.70282456,0.00011801,2]
[350612445,1737994238528,-285.4722686,0.00011803,2]
[350612447,1737994238538,-5132.70282456,0.00011808,2]
[350612449,1737994238547,-285.4722686,0.0001181,2]
[350612451,1737994238557,-5132.70282456,0.00011814,2]
[350612453,1737994238566,-285.4722686,0.00011816,2]
[350612455,1737994238575,-5132.70282456,0.00011821,2]
[350612456,1737994238584,-285.4722686,0.00011823,2]
[350612458,1737994238594,-5132.70282456,0.00011828,2]
[350612460,1737994238603,-285.4722686,0.00011829,2]
[350612462,1737994238613,-12576.12769286,0.00011833,2]
[350612464,1737994238622,-5132.70282456,0.00011835,2]
[350612466,1737994238631,-5132.70282456,0.00011841,2]
[350612468,1737994238640,-5132.70282456,0.00011848,2]
[350612470,1737994238650,-5132.70282456,0.00011855,2]
[350612472,1737994238659,-500.0,0.00011858,2]
[350612474,1737994238668,-500.0,0.00011858,2]
[350612476,1737994238678,-500.0,0.00011858,2]
[350612478,1737994238687,-500.0,0.00011858,2]
[350612480,1737994238696,-500.0,0.00011858,2]
[350612482,1737994238705,-500.0,0.00011858,2]
[350612484,1737994238714,-500.0,0.00011858,2]
[350612486,1737994238723,-500.0,0.00011858,2]
[350612488,1737994238733,-500.0,0.00011858,2]
[350612490,1737994238742,-500.0,0.00011858,2]
[350612492,1737994238751,-500.0,0.00011858,2]
[350612494,1737994238760,-500.0,0.00011858,2]
[350612496,1737994238770,-500.0,0.00011858,2]
[350612498,1737994238779,-500.0,0.00011858,2]
[350612500,1737994238788,-500.0,0.00011858,2]
[350612502,1737994238798,-500.0,0.00011858,2]
[350612504,1737994238807,-500.0,0.00011858,2]
[350612506,1737994238816,-500.0,0.00011858,2]
[350612508,1737994238825,-500.0,0.00011858,2]
[350612510,1737994238834,-500.0,0.00011858,2]
[350612512,1737994238844,-500.0,0.00011858,2]
[350612514,1737994238853,-500.0,0.00011858,2]
[350612516,1737994238863,-545.253,0.0001187,2]
[350612518,1737994238872,-500.0,0.0001187,2]
[350612520,1737994238882,-500.0,0.0001187,2]
[350612522,1737994238891,-1322.6881066,0.00011889,2]
[350612524,1737994238900,-303.5881101,0.00011889,2]
[350612526,1737994238909,-6783.2652008,0.00011889,2]
[350612528,1737994238919,-199.7998988,0.00011889,2]
[350612530,1737994238929,-500.0,0.0001189,2]
[350612532,1737994238939,-164.701363,0.00011894,2]
[350612534,1737994238948,-500.0,0.00011894,2]
[350612536,1737994238958,-836.79,0.00011894,2]
[350612538,1737994238970,-500.0,0.00011894,2]
[350612540,1737994238982,-500.0,0.00011894,2]
[350612542,1737994238992,-448.528875,0.00011894,2]
[350612544,1737994239002,-500.0,0.00011894,2]
[350612546,1737994239013,-500.0,0.00011894,2]
[350612548,1737994239024,-500.0,0.00011894,2]
[350612551,1737994239034,-500.0,0.00011894,2]
[350612553,1737994239044,-718.95,0.00011894,2]
[350612555,1737994239055,-500.0,0.00011894,2]
[350612556,1737994239065,-500.0,0.00011894,2]
[350612558,1737994239076,-500.0,0.00011894,2]
[350612560,1737994239085,-500.0,0.00011894,2]
[350612562,1737994239094,-500.0,0.00011894,2]
[350612564,1737994239103,-551.12,0.00011894,2]
[350612566,1737994239113,-500.0,0.00011894,2]
[350612568,1737994239122,-599.34,0.00011894,2]
[350612570,1737994239131,-500.0,0.00011894,2]
[350612572,1737994239140,-1126.86,0.00011894,2]
[350612574,1737994239149,-500.0,0.00011894,2]
[350612576,1737994239158,-664.3,0.00011894,2]
[350612578,1737994239168,-500.0,0.00011894,2]
[350612580,1737994239178,-500.0,0.00011894,2]
[350612582,1737994239187,-2192.97,0.00011894,2]
[350612584,1737994239197,-500.0,0.00011894,2]
[350612586,1737994239207,-516.06,0.00011894,2]
[350612588,1737994239217,-500.0,0.00011894,2]
[350612590,1737994239226,-776.39,0.00011894,2]
[350612592,1737994239235,-500.0,0.00011894,2]
[350612594,1737994239244,-500.0,0.00011894,2]
[350612596,1737994239254,-500.0,0.00011894,2]
[350612598,1737994239263,-572.95,0.00011894,2]
[350612600,1737994239272,-500.0,0.00011894,2]
[350612602,1737994239282,-500.0,0.00011894,2]
[350612604,1737994239291,-500.0,0.00011894,2]
[350612606,1737994239300,-500.0,0.00011895,2]
[350612608,1737994239310,-500.0,0.00011895,2]
[350612610,1737994239319,-500.0,0.00011895,2]
[350612612,1737994239328,-500.0,0.00011895,2]
[350612614,1737994239338,-500.0,0.00011895,2]
[350612616,1737994239347,-483.88090615,0.00011895,2]
[350612618,1737994239357,-500.0,0.00011895,2]
[350612620,1737994239366,-353.76953686,0.00011895,2]
[350612622,1737994239375,-500.0,0.00011895,2]
[350612624,1737994239384,-500.0,0.00011895,2]
[350612626,1737994239394,-500.0,0.00011895,2]
[350612628,1737994239403,-500.0,0.00011895,2]
[350612630,1737994239412,-500.0,0.00011895,2]
[350612632,1737994239421,-500.0,0.00011895,2]
[350612634,1737994239430,-192.95288614,0.00011895,2]
[350612636,1737994239440,-500.0,0.00011895,2]
[350612638,1737994239449,-519.79160225,0.00011895,2]
[350612640,1737994239458,-500.0,0.00011895,2]
[350612641,1737994239469,-500.0,0.00011895,2]
[350612642,1737994239478,-500.0,0.00011895,2]
[350612643,1737994239487,-500.0,0.00011895,2]
[350612644,1737994239496,-500.0,0.00011895,2]
[350612645,1737994239505,-466.09973703,0.00011895,2]
[350612646,1737994239514,-500.0,0.00011895,2]
[350612647,1737994239524,-500.0,0.00011895,2]
[350612648,1737994239533,-500.0,0.00011895,2]
[350612649,1737994239542,-500.0,0.00011895,2]
[350612650,1737994239551,-423.222234,0.00011895,2]
[350612651,1737994239560,-521.94481643,0.00011895,2]
[350612653,1737994239569,-511.25,0.00011895,2]
[350612655,1737994239578,-500.0,0.00011895,2]
[350612657,1737994239588,-500.0,0.00011895,2]
[350612659,1737994239597,-500.0,0.00011895,2]
[350612661,1737994239607,-253.46,0.00011895,2]
[350612663,1737994239616,-500.0,0.00011895,2]
[350612665,1737994239625,-500.0,0.00011895,2]
[350612667,1737994239634,-500.0,0.00011895,2]
[350612669,1737994239643,-500.0,0.00011895,2]
[350612671,1737994239653,-500.0,0.00011895,2]
[350612673,1737994239663,-500.0,0.00011895,2]
[350612675,1737994239672,-500.0,0.00011895,2]
[350612677,1737994239681,-500.0,0.00011895,2]
[350612679,1737994239690,-500.0,0.00011895,2]
[350612681,1737994239699,-500.0,0.00011895,2]
[350612683,1737994239709,-500.0,0.00011895,2]
[350612685,1737994239721,-500.0,0.00011895,2]
[350612687,1737994239731,-500.0,0.00011895,2]
[350612689,1737994239740,-500.0,0.00011895,2]
[350612691,1737994239749,-500.0,0.00011895,2]
[350612693,1737994239758,-500.0,0.00011895,2]
[350612695,1737994239767,-500.0,0.00011895,2]
[350612697,1737994239776,-500.0,0.00011895,2]
[350612699,1737994239786,-621.92,0.00011895,2]
[350612701,1737994239796,-500.0,0.00011895,2]
[350612703,1737994239807,-500.0,0.00011895,2]
[350612705,1737994239816,-500.0,0.00011895,2]
[350612707,1737994239826,-500.0,0.00011895,2]
[350612709,1737994239835,-500.0,0.00011895,2]
[350612711,1737994239844,-500.0,0.00011895,2]
[350612713,1737994239854,-345.35062812,0.00011895,2]
[350612715,1737994239863,-500.0,0.00011895,2]
[350612717,1737994239872,-500.0,0.00011895,2]
[350612719,1737994239881,-500.0,0.00011895,2]
[350612721,1737994239891,-500.0,0.00011895,2]
[350612723,1737994239900,-500.0,0.00011895,2]
[350612725,1737994239909,-500.0,0.00011895,2]
[350612728,1737994239919,-500.0,0.00011895,2]
[350612729,1737994239928,-500.0,0.00011895,2]
[350612731,1737994239938,-500.0,0.00011895,2]
[350612733,1737994239947,-500.0,0.00011895,2]
[350612735,1737994239956,-500.0,0.00011895,2]
[350612737,1737994239968,-500.0,0.00011895,2]
[350612739,1737994239978,-500.0,0.00011895,2]
[350612742,1737994239988,-500.0,0.00011895,2]
[350612744,1737994239998,-520.63,0.00011895,2]
[350612746,1737994240007,-500.0,0.00011895,2]
[350612748,1737994240017,-500.0,0.00011895,2]
[350612750,1737994240027,-500.0,0.00011895,2]
[350612752,1737994240036,-500.0,0.00011895,2]
[350612755,1737994240048,-500.0,0.00011895,2]
[350612757,1737994240058,-500.0,0.00011895,2]
[350612759,1737994240068,-500.0,0.00011895,2]
[350612761,1737994240077,-500.0,0.00011895,2]
[350612763,1737994240086,-500.0,0.00011895,2]
[350612766,1737994240095,-500.0,0.00011895,2]
[350612768,1737994240106,-241.4,0.00011895,2]
[350612770,1737994240115,-500.0,0.00011895,2]
[350612773,1737994240126,-500.0,0.00011895,2]
[350612776,1737994240137,-867.29,0.00011895,2]
[350612779,1737994240147,-500.0,0.00011895,2]
[350612782,1737994240157,-500.0,0.00011895,2]
[350612784,1737994240166,-500.0,0.00011895,2]
[350612787,1737994240175,-500.0,0.00011895,2]
[350612790,1737994240185,-500.0,0.00011895,2]
[350612792,1737994240194,-500.0,0.00011895,2]
[350612794,1737994240206,-500.0,0.00011895,2]
[350612796,1737994240216,-280.29066698,0.00011895,2]
[350612798,1737994240225,-500.0,0.00011895,2]
[350612800,1737994240235,-500.0,0.00011895,2]
[350612802,1737994240245,-500.0,0.00011895,2]
[350612803,1737994240254,-500.0,0.00011895,2]
[350612805,1737994240265,-500.0,0.00011896,2]
[350612808,1737994240275,-500.0,0.00011896,2]
[350612810,1737994240285,-516.58264523,0.00011896,2]
[350612812,1737994240294,-500.0,0.00011896,2]
[350612814,1737994240305,-500.0,0.00011896,2]
[350612816,1737994240315,-500.0,0.00011896,2]
[350612818,1737994240324,-500.0,0.00011896,2]
[350612820,1737994240334,-500.0,0.00011896,2]
[350612822,1737994240343,-506.74137757,0.00011896,2]
[350612824,1737994240353,-500.0,0.00011896,2]
[350612826,1737994240362,-500.0,0.00011896,2]
[350612828,1737994240371,-500.0,0.00011896,2]
[350612829,1737994240380,-500.0,0.00011896,2]
[350612832,1737994240390,-514.13877028,0.00011896,2]
[350612834,1737994240400,-500.0,0.00011896,2]
[350612836,1737994240409,-500.0,0.00011896,2]
[350612838,1737994240419,-500.0,0.00011896,2]
[350612840,1737994240428,-500.0,0.00011896,2]
[350612842,1737994240438,-386.77055246,0.00011896,2]
[350612844,1737994240447,-500.0,0.00011896,2]
[350612846,1737994240456,-500.0,0.00011896,2]
[350612848,1737994240465,-500.0,0.00011896,2]
[350612850,1737994240475,-500.0,0.00011896,2]
[350612852,1737994240484,-500.0,0.00011896,2]
[350612854,1737994240494,-500.0,0.00011896,2]
[350612855,1737994240503,-79.2372678,0.00011896,2]
[350612858,1737994240517,-289.6898663,0.00011896,2]
[350612860,1737994240527,-500.0,0.00011896,2]
[350612862,1737994240536,-223.5325337,0.00011896,2]
[350612883,1737994240725,-500.0,0.00011894,2]
[350612885,1737994240734,-276.4674663,0.00011896,2]
[350612887,1737994240743,-500.0,0.00011896,2]
[350612889,1737994240753,-500.0,0.00011896,2]
[350612891,1737994240762,-456.67663683,0.00011896,2]
[350612893,1737994240777,-43.32336317,0.00011896,2]
[350612895,1737994240786,-500.0,0.00011896,2]
[350612897,1737994240796,-500.0,0.00011896,2]
[350612899,1737994240805,-500.0,0.00011896,2]
[350612901,1737994240814,-500.0,0.00011896,2]
[350612903,1737994240823,-500.0,0.00011896,2]
[350612905,1737994240832,-500.0,0.00011896,2]
[350612907,1737994240841,-500.0,0.00011896,2]
[350612909,1737994240850,-500.0,0.00011896,2]
[350612911,1737994240860,-500.0,0.00011896,2]
[350612913,1737994240869,-500.0,0.00011896,2]
[350612915,1737994240878,-500.0,0.00011896,2]
[350612917,1737994240887,-500.0,0.00011896,2]
[350612919,1737994240896,-382.85993056,0.00011896,2]
[350612921,1737994240905,-500.0,0.00011896,2]
[350612923,1737994240914,-500.0,0.00011896,2]
[350612925,1737994240923,-323.28584513,0.00011896,2]
[350612927,1737994240932,-500.0,0.00011896,2]
[350612929,1737994240942,-500.0,0.00011896,2]
[350612931,1737994240951,-421.41625779,0.00011896,2]
[350612933,1737994240962,-500.0,0.00011896,2]
[350612935,1737994240972,-500.0,0.00011896,2]
[350612937,1737994240986,-500.0,0.00011896,2]
[350612939,1737994240995,-500.0,0.00011896,2]
[350612941,1737994241005,-500.0,0.00011896,2]
[350612943,1737994241014,-500.0,0.00011896,2]
[350612945,1737994241023,-500.0,0.00011896,2]
[350612947,1737994241033,-500.0,0.00011896,2]
[350612949,1737994241042,-500.0,0.00011896,2]
[350612951,1737994241051,-500.0,0.00011896,2]
[350612953,1737994241062,-506.78946765,0.00011896,2]
[350612955,1737994241072,-500.0,0.00011896,2]
[350612957,1737994241081,-500.0,0.00011896,2]
[350612959,1737994241091,-500.0,0.00011896,2]
[350612961,1737994241100,-500.0,0.00011896,2]
[350612963,1737994241109,-516.27831266,0.00011896,2]
[350612965,1737994241119,-500.0,0.00011896,2]
[350612967,1737994241128,-288.2377084,0.00011896,2]
[350612969,1737994241137,-500.0,0.00011896,2]
[350612971,1737994241147,-500.0,0.00011896,2]
[350612973,1737994241156,-500.0,0.00011896,2]
[350612975,1737994241165,-500.0,0.00011896,2]
[350612977,1737994241175,-500.0,0.00011896,2]
[350612979,1737994241184,-500.0,0.00011896,2]
[350612981,1737994241193,-500.0,0.00011896,2]
[350612983,1737994241203,-503.22161499,0.00011896,2]
[350612985,1737994241212,-500.0,0.00011896,2]
[350612987,1737994241223,-500.0,0.00011896,2]
[350612989,1737994241232,-500.0,0.00011896,2]
[350612991,1737994241242,-500.0,0.00011896,2]
[350612993,1737994241251,-500.0,0.00011896,2]
[350612995,1737994241261,-500.0,0.00011896,2]
[350612997,1737994241270,-500.0,0.00011896,2]
[350612999,1737994241280,-500.0,0.00011896,2]
[350613001,1737994241290,-500.0,0.00011896,2]
[350613003,1737994241300,-500.0,0.00011896,2]
[350613005,1737994241309,-500.0,0.00011896,2]
[350613007,1737994241319,-500.0,0.00011896,2]
[350613009,1737994241328,-500.0,0.00011896,2]
[350613011,1737994241337,-500.0,0.00011896,2]
[350613013,1737994241347,-500.0,0.00011896,2]
[350613015,1737994241356,-500.0,0.00011896,2]
[350613017,1737994241365,-500.0,0.00011896,2]
[350613019,1737994241374,-500.0,0.00011896,2]
[350613021,1737994241383,-500.0,0.00011896,2]
[350613023,1737994241394,-500.0,0.00011896,2]
[350613025,1737994241403,-500.0,0.00011896,2]
[350613027,1737994241412,-500.0,0.00011896,2]
[350613029,1737994241421,-500.0,0.00011896,2]
[350613031,1737994241430,-500.0,0.00011896,2]
[350613033,1737994241439,-248.24377808,0.00011896,2]
[350613035,1737994241448,-500.0,0.00011896,2]
[350613037,1737994241458,-500.0,0.00011896,2]
[350613039,1737994241468,-500.0,0.00011896,2]
[350613041,1737994241477,-500.0,0.00011896,2]
[350613043,1737994241486,-500.0,0.00011896,2]
[350613045,1737994241496,-500.0,0.00011896,2]
[350613046,1737994241508,-500.0,0.00011896,2]
[350613049,1737994241518,-500.0,0.00011896,2]
[350613051,1737994241527,-500.0,0.00011896,2]
[350613053,1737994241537,-500.0,0.00011896,2]
[350613055,1737994241546,-500.0,0.00011896,2]
[350613056,1737994241555,-500.0,0.00011896,2]
[350613058,1737994241564,-500.0,0.00011896,2]
[350613060,1737994241573,-284.17243776,0.00011896,2]
[350613062,1737994241583,-500.0,0.00011896,2]
[350613064,1737994241592,-500.0,0.00011896,2]
[350613066,1737994241602,-566.44996397,0.00011896,2]
[350613068,1737994241611,-500.0,0.00011896,2]
[350613070,1737994241620,-500.0,0.00011896,2]
[350613072,1737994241630,-500.0,0.00011896,2]
[350613075,1737994241640,-500.0,0.00011896,2]
[350613076,1737994241653,-500.0,0.00011896,2]
[350613078,1737994241663,-500.0,0.00011896,2]
[350613081,1737994241672,-510.99365914,0.00011896,2]
[350613082,1737994241682,-500.0,0.00011896,2]
[350613084,1737994241691,-500.0,0.00011896,2]
[350613086,1737994241701,-500.0,0.00011896,2]
[350613088,1737994241710,-354.4627457,0.00011896,2]
[350613091,1737994241723,-169.48678256,0.00011896,2]
[350613092,1737994241732,-500.0,0.00011896,2]
[350613094,1737994241741,-200.26586538,0.00011896,2]
[350613097,1737994241753,-299.73413462,0.00011896,2]
[350613099,1737994241763,-500.0,0.00011897,2]
[350613100,1737994241773,-500.0,0.00011897,2]
[350613102,1737994241782,-500.0,0.00011897,2]
[350613105,1737994241792,-500.0,0.00011897,2]
[350613107,1737994241802,-500.0,0.00011897,2]
[350613109,1737994241812,-500.0,0.00011897,2]
[350613111,1737994241822,-500.0,0.00011897,2]
[350613113,1737994241832,-387.51817309,0.00011897,2]
[350613115,1737994241841,-500.0,0.00011897,2]
[350613117,1737994241852,-500.0,0.00011897,2]
[350613119,1737994241862,-500.0,0.00011897,2]
[350613121,1737994241872,-500.0,0.00011897,2]
[350613123,1737994241881,-500.0,0.00011897,2]
[350613125,1737994241891,-500.0,0.00011897,2]
[350613127,1737994241901,-500.0,0.00011897,2]
[350613128,1737994241911,-500.0,0.00011897,2]
[350613130,1737994241920,-500.0,0.00011897,2]
[350613132,1737994241929,-500.0,0.00011897,2]
[350613134,1737994241939,-500.0,0.00011897,2]
[350613137,1737994241950,-500.0,0.00011897,2]
[350613139,1737994241959,-500.0,0.00011897,2]
[350613141,1737994241974,-500.0,0.00011897,2]
[350613143,1737994241984,-500.0,0.00011897,2]
[350613145,1737994241993,-500.0,0.00011897,2]
[350613147,1737994242003,-500.0,0.00011897,2]
[350613149,1737994242014,-500.0,0.00011897,2]
[350613151,1737994242024,-353.56134728,0.00011897,2]
[350613152,1737994242033,-500.0,0.00011897,2]
[350613154,1737994242043,-424.0845248,0.00011897,2]
[350613166,1737994242227,-500.0,0.00011897,2]
[350613167,1737994242239,-500.0,0.00011897,2]
[350613169,1737994242249,-500.0,0.00011897,2]
[350613171,1737994242260,-145.17731384,0.00011897,2]
[350613175,1737994242282,-285.4722686,0.00011836,2]
[350613177,1737994242293,-354.82268616,0.00011897,2]
[350613179,1737994242303,-587.36,0.00011897,2]
[350613181,1737994242313,-500.0,0.00011897,2]
[350613183,1737994242323,-500.0,0.00011897,2]
[350613185,1737994242333,-500.0,0.00011897,2]
[350613187,1737994242343,-500.0,0.00011897,2]
[350613189,1737994242352,-640.96747378,0.00011897,2]
[350613190,1737994242362,-500.0,0.00011897,2]
[350613192,1737994242373,-500.0,0.00011897,2]
[350613194,1737994242382,-500.0,0.00011897,2]
[350613196,1737994242391,-500.0,0.00011897,2]
[350613198,1737994242400,-500.0,0.00011897,2]
[350613199,1737994242410,-500.0,0.00011897,2]
[350613201,1737994242419,-530.63776187,0.00011897,2]
[350613203,1737994242428,-500.0,0.00011897,2]
[350613204,1737994242438,-500.0,0.00011897,2]
[350613205,1737994242448,-500.0,0.00011897,2]
[350613206,1737994242458,-500.0,0.00011897,2]
[350613207,1737994242469,-500.0,0.00011897,2]
[350613208,1737994242479,-200.73980959,0.00011897,2]
[350613209,1737994242526,-299.26019041,0.00011897,2]
[350613210,1737994242535,-500.0,0.00011897,2]
[350613211,1737994242545,-500.0,0.00011897,2]
[350613212,1737994242554,-247.94629441,0.00011897,2]
[350613213,1737994242564,-500.0,0.00011897,2]
[350613214,1737994242574,-500.0,0.00011897,2]
[350613215,1737994242584,-500.0,0.00011897,2]
[350613216,1737994242594,-500.0,0.00011897,2]
[350613217,1737994242603,-500.0,0.00011897,2]
[350613218,1737994242614,-500.0,0.00011897,2]
[350613219,1737994242623,-500.0,0.00011897,2]
[350613220,1737994242632,-41.06305323,0.00011897,2]
[350613266,1737994243366,-144.67694677,0.00011897,2]
[350613268,1737994243376,-355.32305323,0.00011897,2]
[350613283,1737994243577,-144.67694677,0.00011897,2]
[350613284,1737994243586,-500.0,0.00011897,2]
[350613285,1737994243596,-280.7551687,0.00011897,2]
[350613286,1737994243607,-219.2448313,0.00011897,2]
[350613287,1737994243617,-500.0,0.00011897,2]
[350613288,1737994243625,-500.0,0.00011897,2]
[350613289,1737994243634,-500.0,0.00011897,2]
[350613290,1737994243644,-500.0,0.00011897,2]
[350613291,1737994243653,-305.75837442,0.00011897,2]
[350613292,1737994243664,-194.24162558,0.00011897,2]
[350613293,1737994243673,-500.0,0.00011897,2]
[350613294,1737994243682,-500.0,0.00011897,2]
[350613295,1737994243691,-500.0,0.00011897,2]
[350613296,1737994243700,-500.0,0.00011897,2]
[350613297,1737994243709,-603.26,0.00011897,2]
[350613298,1737994243720,-500.0,0.00011897,2]
[350613299,1737994243730,-509.58718179,0.00011897,2]
[350613301,1737994243739,-500.0,0.00011897,2]
[350613302,1737994243749,-500.0,0.00011897,2]
[350613303,1737994243758,-500.0,0.00011897,2]
[350613304,1737994243767,-500.0,0.00011897,2]
[350613305,1737994243776,-500.0,0.00011897,2]
[350613306,1737994243785,-500.0,0.00011897,2]
[350613307,1737994243794,-500.0,0.00011897,2]
[350613308,1737994243803,-500.0,0.00011897,2]
[350613309,1737994243812,-500.0,0.00011897,2]
[350613310,1737994243821,-500.0,0.00011897,2]
[350613311,1737994243831,-500.0,0.00011897,2]
[350613312,1737994243841,-500.0,0.00011897,2]
[350613314,1737994243850,-30.58958147,0.00011897,2]
[350613315,1737994243862,-469.41041853,0.00011897,2]
[350613316,1737994243871,-500.0,0.00011897,2]
[350613317,1737994243880,-500.0,0.00011897,2]
[350613318,1737994243889,-500.0,0.00011897,2]
[350613319,1737994243899,-500.0,0.00011897,2]
[350613320,1737994243908,-500.0,0.00011897,2]
[350613321,1737994243917,-500.0,0.00011897,2]
[350613322,1737994243927,-500.0,0.00011897,2]
[350613323,1737994243936,-500.0,0.00011897,2]
[350613324,1737994243945,-500.0,0.00011897,2]
[350613325,1737994243954,-448.528875,0.00011897,2]
[350613326,1737994243963,-500.0,0.00011897,2]
[350613327,1737994243974,-500.0,0.00011897,2]
[350613328,1737994243987,-500.0,0.00011897,2]